bitfinex/quotes_BTCUSD_20250303
["timestamp","ask_amount","ask_price","bid_price","bid_amount"]
[1740982716242,0.00038087,93198.0,93197.0,0.77839985]
[1740982716445,0.00038087,93198.0,93197.0,1.19459985]
[1740982716697,0.00038087,93198.0,93197.0,1.27119985]
[1740982716827,8.7e-07,93203.0,93202.0,0.428752]
[1740982717026,0.00040221,93203.0,93202.0,0.56839285]
[1740982718561,0.00040221,93203.0,93202.0,0.72308285]
[1740982718756,0.00040221,93203.0,93202.0,0.52689285]
[1740982718959,0.00040221,93203.0,93202.0,0.45029285]
[1740982719428,0.00040221,93203.0,93202.0,0.45729285]
[1740982719981,0.00040221,93203.0,93202.0,0.45029285]
[1740982720181,0.00040221,93203.0,93202.0,0.44329285]
[1740982720407,0.00040221,93203.0,93202.0,1.18659285]
[1740982720730,0.00040221,93203.0,93202.0,1.19359285]
[1740982721532,0.00040221,93203.0,93202.0,1.20059285]
[1740982721904,0.00040221,93203.0,93202.0,1.19359285]
[1740982722305,0.00040221,93203.0,93202.0,1.20059285]
[1740982726077,0.00040221,93203.0,93202.0,0.886052]
[1740982726278,0.12650221,93203.0,93202.0,0.3411]
[1740982726820,0.12650221,93203.0,93202.0,0.35564085]
[1740982727171,0.12650221,93203.0,93202.0,0.3411]
[1740982727570,0.12650221,93203.0,93202.0,0.3341]
[1740982727770,0.12650221,93203.0,93202.0,0.35564085]
[1740982728023,0.12650221,93203.0,93202.0,0.34864085]
[1740982728204,0.12650221,93203.0,93202.0,0.47739285]
[1740982728384,0.12650221,93203.0,93202.0,0.47039285]
[1740982729538,0.12650221,93203.0,93202.0,0.47539285]
[1740982729672,0.00040221,93203.0,93202.0,0.47039285]
[1740982730074,0.00040221,93203.0,93202.0,0.47139285]
[1740982730822,0.00040221,93203.0,93202.0,0.47039285]
[1740982731806,0.00040221,93203.0,93202.0,0.47139285]
[1740982732436,0.00040221,93203.0,93202.0,0.47039285]
[1740982732631,0.00040221,93203.0,93202.0,0.47139285]
[1740982732839,0.00040221,93203.0,93202.0,0.47039285]
[1740982733155,0.00040221,93203.0,93202.0,0.47239285]
[1740982733479,0.00040221,93203.0,93202.0,0.47039285]
[1740982733899,0.00040221,93203.0,93202.0,0.47439285]
[1740982734852,0.00040221,93203.0,93202.0,0.47239285]
[1740982734988,0.00040221,93203.0,93202.0,0.47539285]
[1740982736292,0.00040221,93203.0,93202.0,0.47556315]
[1740982737135,0.00040221,93203.0,93202.0,0.47356315]
[1740982737449,0.00040221,93203.0,93202.0,0.47156315]
[1740982737655,0.00040221,93203.0,93202.0,0.47256315]
[1740982740972,0.00040221,93203.0,93202.0,0.01671115]
[1740982741314,0.00040221,93203.0,93202.0,0.14546315]
[1740982741722,0.00040221,93203.0,93202.0,0.14446315]
[1740982742152,0.00040221,93203.0,93202.0,0.14346315]
[1740982743629,0.00040221,93203.0,93202.0,0.14446315]
[1740982744213,0.00040221,93203.0,93202.0,0.77256315]
[1740982744467,0.00040221,93203.0,93202.0,1.26596315]
[1740982744664,0.00040221,93203.0,93202.0,1.26496315]
[1740982745026,0.00040221,93203.0,93202.0,1.26896315]
[1740982745667,0.00040221,93203.0,93202.0,1.34208315]
[1740982745881,0.00040221,93203.0,93202.0,2.41800715]
[1740982746039,0.00040221,93203.0,93202.0,2.42100715]
[1740982746247,0.00040221,93203.0,93202.0,2.41800715]
[1740982746449,0.00040221,93203.0,93202.0,2.41400715]
[1740982746647,0.00140221,93203.0,93202.0,2.42800715]
[1740982746868,0.00140221,93203.0,93202.0,1.74546815]
[1740982747078,0.00140221,93203.0,93202.0,1.50849415]
[1740982747792,0.00140221,93203.0,93202.0,1.51665796]
[1740982752003,0.00140221,93203.0,93202.0,1.46316196]
[1740982752581,0.00140221,93203.0,93202.0,1.35924696]
[1740982752791,0.00140221,93203.0,93202.0,1.54967896]
[1740982753259,0.00140221,93203.0,93202.0,1.35924696]
[1740982757524,0.00140221,93203.0,93202.0,1.20892696]
[1740982757738,0.00140221,93203.0,93202.0,1.20076315]
[1740982761947,0.00140221,93203.0,93202.0,0.78456315]
[1740982764174,0.0772,93217.0,93216.0,0.128733]
[1740982764532,0.0772,93217.0,93216.0,0.14339359]
[1740982765115,0.0772,93217.0,93216.0,0.14067994]
[1740982765653,0.0772,93217.0,93216.0,0.15067994]
[1740982766459,0.0474,93220.0,93219.0,0.14326985]
[1740982768975,0.0474,93220.0,93219.0,0.14626985]
[1740982769202,0.0474,93220.0,93219.0,0.15126985]
[1740982771938,0.0477406,93220.0,93219.0,0.15126985]
[1740982778485,0.0477406,93220.0,93219.0,0.02254085]
[1740982778723,0.0477406,93220.0,93219.0,0.15126985]
[1740982779280,0.1306406,93220.0,93219.0,0.02254085]
[1740982779487,0.1306406,93220.0,93219.0,0.003]
[1740982779710,0.1306406,93220.0,93217.0,0.3271]
[1740982779711,0.128729,93219.0,93217.0,0.3271]
[1740982779938,0.0829,93219.0,93216.0,0.00011974]
[1740982781227,0.211629,93219.0,93216.0,0.00011974]
[1740982781428,0.0829,93219.0,93216.0,0.00011974]
[1740982781636,0.211629,93219.0,93216.0,0.00011974]
[1740982782216,0.128731,93217.0,93216.0,0.00211974]
[1740982782441,0.257631,93217.0,93216.0,0.00211974]
[1740982782650,0.27876171,93217.0,93216.0,0.00211974]
[1740982782878,0.31026513,93217.0,93216.0,0.00211974]
[1740982783078,0.31026513,93217.0,93216.0,0.00111974]
[1740982783279,0.27876171,93217.0,93216.0,0.00111974]
[1740982784172,0.27876171,93217.0,93216.0,0.00129004]
[1740982784519,0.27876171,93217.0,93216.0,0.00229004]
[1740982784811,0.27976171,93217.0,93216.0,0.00229004]
[1740982785018,0.27976171,93217.0,93216.0,0.00029004]
[1740982785216,0.27876171,93217.0,93216.0,0.00029004]
[1740982785434,0.31222891,93217.0,93216.0,0.00029004]
[1740982785563,0.32613034,93217.0,93216.0,0.00029004]
[1740982786162,0.62613034,93217.0,93216.0,0.00029004]
[1740982786364,0.49739934,93217.0,93204.0,0.00155724]
[1740982786602,0.250248,93205.0,93204.0,0.00155724]
[1740982787850,0.322568,93205.0,93204.0,0.00155724]
[1740982788749,0.323568,93205.0,93204.0,0.00155724]
[1740982788943,0.325568,93205.0,93204.0,0.00155724]
[1740982789103,0.322568,93205.0,93204.0,0.00155724]
[1740982789307,0.622568,93205.0,93204.0,0.00155724]
[1740982789508,0.626568,93205.0,93204.0,0.00155724]
[1740982796890,0.726568,93205.0,93204.0,0.00155724]
[1740982797105,0.726568,93205.0,93204.0,0.00172764]
[1740982797616,0.75591151,93205.0,93204.0,0.00172764]
[1740982797792,0.128789,93175.0,93174.0,0.0001704]
[1740982797957,0.407569,93175.0,93174.0,0.00057174]
[1740982799229,0.4192995,93175.0,93174.0,0.00057174]
[1740982799447,0.4182995,93175.0,93174.0,0.00057174]
[1740982799756,0.4192995,93175.0,93174.0,0.00057174]
[1740982800147,0.4202995,93175.0,93174.0,0.00057174]
[1740982800589,0.20528,93175.0,93174.0,0.00057174]
[1740982800760,0.15588,93175.0,93174.0,0.00057174]
[1740982801195,0.15688,93175.0,93174.0,0.12936274]
[1740982801970,0.15588,93175.0,93174.0,0.12936274]
[1740982802963,0.15488,93175.0,93174.0,0.12936274]
[1740982803785,0.15488,93175.0,93174.0,0.00057174]
[1740982805202,0.15488,93175.0,93174.0,0.12936274]
[1740982805420,0.15488,93175.0,93174.0,0.47100359]
[1740982805999,0.15488,93175.0,93174.0,0.45646274]
[1740982806206,0.15488,93175.0,93174.0,0.47100359]
[1740982807130,0.15488,93175.0,93174.0,0.55260359]
[1740982808155,0.15492,93189.0,93175.0,0.01454085]
[1740982808448,0.15492,93189.0,93179.0,0.01454085]
[1740982808643,0.15492,93189.0,93177.0,0.01454085]
[1740982808992,0.15492,93189.0,93175.0,0.01454085]
[1740982809192,0.15492,93189.0,93183.0,0.128778]
[1740982809392,0.15492,93189.0,93175.0,0.01454085]
[1740982809590,0.15492,93189.0,93187.0,0.128772]
[1740982809796,0.15492,93189.0,93184.0,0.128776]
[1740982809945,0.15492,93189.0,93175.0,0.01454085]
[1740982809946,0.15992,93189.0,93175.0,0.01454085]
[1740982810151,0.15992,93189.0,93180.0,0.01454085]
[1740982810376,0.15692,93189.0,93180.0,0.01454085]
[1740982810799,0.15992,93189.0,93180.0,0.01454085]
[1740982811276,0.15692,93189.0,93186.0,0.128773]
[1740982811477,0.15992,93189.0,93186.0,0.128773]
[1740982811825,0.15792,93189.0,93186.0,0.128773]
[1740982812184,0.15992,93189.0,93176.0,0.01454085]
[1740982812384,0.15792,93189.0,93176.0,0.14332785]
[1740982812791,0.15592,93189.0,93178.0,0.01454085]
[1740982812994,0.15692,93189.0,93178.0,0.01454085]
[1740982813193,0.15792,93189.0,93175.0,0.01454085]
[1740982813626,0.15492,93189.0,93178.0,0.01454085]
[1740982813835,0.15792,93189.0,93179.0,0.01454085]
[1740982814246,0.283691,93189.0,93177.0,0.01454085]
[1740982814422,0.15492,93189.0,93177.0,0.01454085]
[1740982814623,0.15792,93189.0,93175.0,0.14332885]
[1740982814885,0.15792,93189.0,93178.0,0.01454085]
[1740982815045,0.15992,93189.0,93178.0,0.01454085]
[1740982815265,0.15992,93189.0,93174.0,0.32767174]
[1740982815471,0.15992,93189.0,93184.0,0.128777]
[1740982815788,0.15692,93189.0,93186.0,0.128774]
[1740982816208,0.15992,93189.0,93183.0,0.171703]
[1740982816387,0.15792,93189.0,93184.0,0.128777]
[1740982816547,0.15492,93189.0,93185.0,0.128774]
[1740982816889,0.15692,93189.0,93187.0,0.128772]
[1740982817193,0.15892,93189.0,93185.0,0.128775]
[1740982817428,0.15692,93189.0,93177.0,0.01454085]
[1740982817597,0.15692,93189.0,93186.0,0.128773]
[1740982817832,0.15892,93189.0,93186.0,0.128773]
[1740982818391,0.15892,93189.0,93177.0,0.01454085]
[1740982818610,0.15892,93189.0,93185.0,0.128775]
[1740982818808,0.15692,93189.0,93176.0,0.171718]
[1740982818986,0.15492,93189.0,93188.0,0.128771]
[1740982819197,0.15792,93189.0,93188.0,0.128771]
[1740982819710,0.15592,93189.0,93188.0,0.128771]
[1740982819944,0.15492,93189.0,93188.0,0.128771]
[1740982820234,0.15592,93189.0,93188.0,0.128771]
[1740982820641,0.15792,93189.0,93188.0,0.128771]
[1740982821046,0.15792,93189.0,93177.0,0.01454085]
[1740982821188,0.15792,93189.0,93156.0,0.01065139]
[1740982821189,0.15792,93189.0,93176.0,0.01454085]
[1740982821390,0.15792,93189.0,93188.0,0.14331185]
[1740982821804,0.15792,93189.0,93186.0,0.128774]
[1740982822172,0.15492,93189.0,93187.0,0.128773]
[1740982822306,0.15792,93189.0,93187.0,0.128773]
[1740982822733,0.15692,93189.0,93187.0,0.128773]
[1740982822934,0.15792,93189.0,93187.0,0.128773]
[1740982823178,0.15692,93189.0,93186.0,0.128774]
[1740982823808,0.15592,93189.0,93183.0,0.0001704]
[1740982824017,0.15492,93189.0,93183.0,0.1289474]
[1740982824351,0.15492,93189.0,93183.0,0.01471125]
[1740982824510,0.15492,93189.0,93183.0,0.14348925]
[1740982825234,0.15492,93189.0,93184.0,0.128777]
[1740982825609,0.15792,93189.0,93187.0,0.128772]
[1740982825808,0.15692,93189.0,93187.0,0.128772]
[1740982826005,0.15592,93189.0,93187.0,0.128772]
[1740982826435,0.15692,93189.0,93187.0,0.128772]
[1740982826662,0.15792,93189.0,93185.0,0.1717]
[1740982826859,0.15592,93189.0,93188.0,0.128771]
[1740982827199,0.15692,93189.0,93188.0,0.128771]
[1740982827406,0.15792,93189.0,93188.0,0.128771]
[1740982828507,0.15692,93189.0,93188.0,0.128771]
[1740982828651,0.15492,93189.0,93188.0,0.128771]
[1740982828853,0.15492,93189.0,93186.0,0.171698]
[1740982828854,0.15792,93189.0,93186.0,0.171698]
[1740982829053,0.15692,93189.0,93187.0,0.128772]
[1740982829307,0.15692,93189.0,93186.0,0.128773]
[1740982829603,0.15692,93189.0,93187.0,0.128772]
[1740982829808,0.15492,93189.0,93187.0,0.128772]
[1740982830026,0.15592,93189.0,93187.0,0.128772]
[1740982830226,0.15792,93189.0,93187.0,0.128772]
[1740982830426,0.15792,93189.0,93188.0,0.128771]
[1740982830787,0.15792,93189.0,93183.0,0.0001704]
[1740982831143,0.128777,93184.0,93183.0,0.0001704]
[1740982832501,0.131777,93184.0,93183.0,0.0001704]
[1740982832721,0.136777,93184.0,93183.0,0.0001704]
[1740982835124,0.54927917,93184.0,93183.0,0.0001704]
[1740982835323,0.59777917,93184.0,93183.0,0.0001704]
[1740982835926,0.59777917,93184.0,93174.0,0.00057174]
[1740982835927,0.558289,93175.0,93174.0,0.00057174]
[1740982836131,0.66203117,93175.0,93174.0,0.00057174]
[1740982837029,0.66303117,93175.0,93174.0,0.00057174]
[1740982837256,0.68492629,93175.0,93174.0,0.00057174]
[1740982838555,0.65342412,93175.0,93174.0,0.00057174]
[1740982838757,0.65542412,93175.0,93174.0,0.00057174]
[1740982838975,0.65442412,93175.0,93174.0,0.00057174]
[1740982839183,0.65742412,93175.0,93174.0,0.00057174]
[1740982842518,0.68884287,93175.0,93174.0,0.00057174]
[1740982843259,0.65442412,93175.0,93174.0,0.00057174]
[1740982843496,0.66042412,93175.0,93174.0,0.00057174]
[1740982843702,0.69183829,93175.0,93174.0,0.00057174]
[1740982844420,0.68983829,93175.0,93174.0,0.00057174]
[1740982844620,0.69383829,93175.0,93174.0,0.00057174]
[1740982845195,0.68783829,93175.0,93174.0,0.00057174]
[1740982845396,0.69083829,93175.0,93174.0,0.00057174]
[1740982845600,0.69583829,93175.0,93174.0,0.00057174]
[1740982846318,0.74583829,93175.0,93174.0,0.00057174]
[1740982846538,0.79583829,93175.0,93174.0,0.00057174]
[1740982847139,0.79083829,93175.0,93174.0,0.00057174]
[1740982847532,0.79783829,93175.0,93174.0,0.00057174]
[1740982847974,0.79083829,93175.0,93174.0,0.00057174]
[1740982848392,0.79783829,93175.0,93174.0,0.00057174]
[1740982848960,0.656595,93171.0,93170.0,0.0001704]
[1740982849164,0.68800917,93171.0,93170.0,0.00021047]
[1740982850375,0.656598,93169.0,93168.0,0.0001704]
[1740982850574,0.68801217,93169.0,93168.0,0.0001704]
[1740982851826,0.69501217,93169.0,93168.0,0.0001704]
[1740982852145,0.70201217,93169.0,93168.0,0.0001704]
[1740982852299,0.70201217,93169.0,93132.0,0.0001704]
[1740982852300,0.609947,93133.0,93132.0,0.0001704]
[1740982852485,0.609947,93133.0,93110.0,0.0001703]
[1740982852486,0.3,93132.0,93110.0,0.0001703]
[1740982852704,0.428861,93123.0,93110.0,0.0001703]
[1740982852907,0.428861,93123.0,93122.0,0.00021045]
[1740982853711,0.43964942,93123.0,93122.0,0.00021045]
[1740982854163,0.51236942,93123.0,93122.0,0.00021045]
[1740982855172,0.51836942,93123.0,93122.0,0.00021045]
[1740982855392,0.52436942,93123.0,93122.0,0.00021045]
[1740982855758,0.51836942,93123.0,93122.0,0.00021045]
[1740982855955,0.56292507,93123.0,93122.0,0.00021045]
[1740982856276,0.5262468,93123.0,93122.0,0.00021045]
[1740982856862,0.5268068,93123.0,93122.0,0.00021045]
[1740982857279,0.5308068,93123.0,93122.0,0.00021045]
[1740982861530,0.6065068,93123.0,93122.0,0.00021045]
[1740982861705,0.6564068,93123.0,93122.0,0.00021045]
[1740982862331,0.6504068,93123.0,93122.0,0.00021045]
[1740982862536,0.6464068,93123.0,93122.0,0.00021045]
[1740982862722,0.6534068,93123.0,93122.0,0.00021045]
[1740982862908,0.6594068,93123.0,93122.0,0.00021045]
[1740982863313,0.6594068,93123.0,93100.0,0.02]
[1740982863314,0.428892,93101.0,93100.0,0.02]
[1740982863479,0.625012,93101.0,93100.0,0.02012023]
[1740982863679,0.428904,93092.0,93076.0,0.0001704]
[1740982863875,0.45094625,93092.0,93091.0,0.00546018]
[1740982864880,0.45094625,93092.0,93091.0,0.02000103]
[1740982865063,0.45094625,93092.0,93091.0,0.01500103]
[1740982865278,0.45094625,93092.0,93091.0,0.01437045]
[1740982865463,0.52470625,93092.0,93091.0,0.01437045]
[1740982865680,0.53170625,93092.0,93091.0,0.01437045]
[1740982865859,0.53670625,93092.0,93091.0,0.01437045]
[1740982866258,0.53170625,93092.0,93091.0,0.01437045]
[1740982866437,0.53170625,93092.0,93076.0,0.0001704]
[1740982866438,0.428907,93090.0,93076.0,0.0001704]
[1740982866639,0.428907,93090.0,93089.0,0.00024374]
[1740982867673,0.502667,93090.0,93089.0,0.00024374]
[1740982868035,0.509667,93090.0,93089.0,0.00024374]
[1740982868440,0.657707,93090.0,93089.0,0.00024374]
[1740982869034,0.670707,93090.0,93089.0,0.00024374]
[1740982869223,0.664707,93090.0,93089.0,0.00024374]
[1740982869433,0.670707,93090.0,93089.0,0.00024374]
[1740982869648,0.664707,93090.0,93089.0,0.00024374]
[1740982870019,0.663707,93090.0,93089.0,0.00024374]
[1740982870435,0.670707,93090.0,93089.0,0.00024374]
[1740982870968,0.663707,93090.0,93089.0,0.00024374]
[1740982871276,0.670507,93090.0,93089.0,0.00024374]
[1740982871730,0.663507,93090.0,93089.0,0.00024374]
[1740982872075,0.664507,93090.0,93089.0,0.00024374]
[1740982872454,0.596947,93090.0,93089.0,0.00024374]
[1740982872654,0.16804,93090.0,93089.0,0.00024374]
[1740982872881,0.296947,93090.0,93089.0,0.00024374]
[1740982873020,0.16804,93090.0,93089.0,0.00024374]
[1740982873470,0.16104,93090.0,93089.0,0.00024374]
[1740982873640,0.289947,93090.0,93089.0,0.00024374]
[1740982873840,0.590947,93090.0,93089.0,0.00024374]
[1740982874264,0.583947,93090.0,93089.0,0.00024374]
[1740982874702,0.588947,93090.0,93089.0,0.00024374]
[1740982875514,0.591947,93090.0,93089.0,0.00024374]
[1740982876075,0.588947,93090.0,93089.0,0.00024374]
[1740982876411,0.587947,93090.0,93089.0,0.00024374]
[1740982876859,0.593947,93090.0,93089.0,0.00024374]
[1740982878309,0.3,93089.0,93069.0,0.128935]
[1740982878469,0.3,93089.0,93070.0,0.128935]
[1740982878670,0.3,93089.0,93070.0,0.16098171]
[1740982878880,0.16504,93090.0,93071.0,0.128932]
[1740982879076,0.12891,93088.0,93070.0,0.16098171]
[1740982879277,0.330917,93090.0,93069.0,0.12933687]
[1740982879477,0.128908,93089.0,93069.0,0.00040187]
[1740982879700,0.12891,93088.0,93069.0,0.00040187]
[1740982880020,0.006,93089.0,93069.0,0.00040187]
[1740982880163,0.003,93089.0,93069.0,0.00040187]
[1740982880375,0.16104,93090.0,93069.0,0.00040187]
[1740982880580,0.16104,93090.0,93076.0,0.01454085]
[1740982880912,0.16104,93090.0,93073.0,0.01454085]
[1740982881097,0.15504,93090.0,93073.0,0.01454085]
[1740982881281,0.006,93089.0,93070.0,0.01454085]
[1740982881680,0.006,93089.0,93073.0,0.01454085]
[1740982881933,0.137909,93089.0,93073.0,0.01454085]
[1740982882085,0.134909,93089.0,93071.0,0.01454085]
[1740982882280,0.006,93089.0,93073.0,0.01454085]
[1740982882486,0.006,93089.0,93069.0,0.00040187]
[1740982882487,0.003,93089.0,93081.0,0.01454085]
[1740982882686,0.15504,93090.0,93083.0,0.01454085]
[1740982882885,0.16104,93090.0,93083.0,0.01454085]
[1740982883127,0.003,93089.0,93085.0,0.01454085]
[1740982883322,0.128913,93086.0,93075.0,0.0821]
[1740982883545,0.15504,93090.0,93071.0,0.0001706]
[1740982883891,0.009,93089.0,93071.0,0.0001706]
[1740982884031,0.128923,93079.0,93071.0,0.0001706]
[1740982884232,0.128924,93078.0,93071.0,0.0001706]
[1740982884652,0.128927,93076.0,93071.0,0.0001706]
[1740982885228,0.12893,93074.0,93071.0,0.0001706]
[1740982885433,0.01097067,93080.0,93071.0,0.0001706]
[1740982885434,0.128932,93072.0,93071.0,0.0001706]
[1740982886205,0.08478993,93081.0,93071.0,0.0001706]
[1740982886673,0.129932,93072.0,93071.0,0.0001706]
[1740982887034,0.02188012,93077.0,93071.0,0.0001706]
[1740982888236,0.02488012,93077.0,93071.0,0.0001706]
[1740982888441,0.128932,93072.0,93071.0,0.0001706]
[1740982889700,0.129932,93072.0,93071.0,0.0001706]
[1740982889877,0.130932,93072.0,93071.0,0.0001706]
[1740982890706,0.179932,93072.0,93071.0,0.0001706]
[1740982890912,0.178932,93072.0,93071.0,0.0001706]
[1740982891299,0.180932,93072.0,93071.0,0.0001706]
[1740982891695,0.179932,93072.0,93071.0,0.0001706]
[1740982891918,0.180932,93072.0,93071.0,0.0001706]
[1740982892244,0.17826937,93072.0,93071.0,0.0001706]
[1740982892601,0.17926937,93072.0,93071.0,0.0001706]
[1740982892785,0.17726937,93072.0,93071.0,0.0001706]
[1740982892972,0.17926937,93072.0,93071.0,0.0001706]
[1740982895977,0.17961077,93072.0,93071.0,0.0001706]
[1740982897435,0.47961077,93072.0,93071.0,0.0001706]
[1740982898676,0.43061077,93072.0,93071.0,0.0001706]
[1740982898854,0.42761077,93072.0,93071.0,0.0001706]
[1740982899176,0.43761077,93072.0,93071.0,0.0001706]
[1740982899757,0.43161077,93072.0,93071.0,0.0001706]
[1740982899953,0.43761077,93072.0,93071.0,0.0001706]
[1740982900500,0.43161077,93072.0,93071.0,0.0001706]
[1740982900863,0.43761077,93072.0,93071.0,0.0001706]
[1740982902136,0.59273077,93072.0,93071.0,0.0001706]
[1740982904984,0.58873077,93072.0,93071.0,0.0001706]
[1740982905244,0.58773077,93072.0,93071.0,0.0001706]
[1740982905547,0.59473077,93072.0,93071.0,0.0001706]
[1740982906075,0.58273077,93072.0,93071.0,0.0001706]
[1740982906408,0.59473077,93072.0,93071.0,0.0001706]
[1740982906589,0.58973077,93072.0,93071.0,0.0001706]
[1740982906945,0.58773077,93072.0,93071.0,0.0001706]
[1740982907173,0.59473077,93072.0,93071.0,0.0001706]
[1740982908312,0.58273077,93072.0,93071.0,0.0001706]
[1740982908533,0.59473077,93072.0,93071.0,0.0001706]
[1740982908934,0.58973077,93072.0,93071.0,0.0001706]
[1740982909135,0.58273077,93072.0,93071.0,0.0001706]
[1740982909376,0.58973077,93072.0,93071.0,0.0001706]
[1740982909716,0.59473077,93072.0,93071.0,0.0001706]
[1740982909847,0.58773077,93072.0,93071.0,0.0001706]
[1740982910045,0.58273077,93072.0,93071.0,0.0001706]
[1740982910250,0.58973077,93072.0,93071.0,0.0001706]
[1740982911456,0.59473077,93072.0,93071.0,0.0001706]
[1740982914895,0.4674614,93072.0,93071.0,0.0001706]
[1740982915093,0.5963934,93072.0,93071.0,0.0001706]
[1740982915895,0.6697934,93072.0,93071.0,0.0001706]
[1740982916771,0.7012474,93072.0,93071.0,0.0001706]
[1740982917074,0.6697934,93072.0,93071.0,0.0001706]
[1740982917720,0.70125641,93072.0,93071.0,0.0001706]
[1740982918256,0.6697934,93072.0,93071.0,0.0001706]
[1740982918453,0.70127011,93072.0,93071.0,0.0001706]
[1740982920152,0.12896,93052.0,93051.0,0.0004]
[1740982920510,0.12896,93052.0,93051.0,0.00044019]
[1740982921352,0.28408,93052.0,93051.0,0.00044019]
[1740982921729,0.28808,93052.0,93051.0,0.00044019]
[1740982922145,0.28708,93052.0,93051.0,0.00044019]
[1740982922571,0.30203829,93052.0,93051.0,0.00044019]
[1740982922728,0.16212,93052.0,93051.0,0.00044019]
[1740982923098,0.15912,93052.0,93051.0,0.07714019]
[1740982923274,0.15912,93052.0,93047.0,0.128965]
[1740982923490,0.15912,93052.0,93028.0,0.0001704]
[1740982923491,0.15912,93052.0,93042.0,0.16098171]
[1740982924327,0.15712,93052.0,93042.0,0.16098171]
[1740982924570,0.15512,93052.0,93042.0,0.16098171]
[1740982924751,0.15812,93052.0,93042.0,0.16098171]
[1740982925147,0.15512,93052.0,93042.0,0.16098171]
[1740982925532,0.15512,93052.0,93040.0,0.16098171]
[1740982925746,0.15512,93052.0,93048.0,0.128964]
[1740982926403,0.15512,93052.0,93048.0,0.0822]
[1740982928036,0.15512,93052.0,93049.0,0.128962]
[1740982928409,0.15512,93052.0,93048.0,0.0822]
[1740982929416,0.15512,93052.0,93048.0,0.211165]
[1740982929620,0.15512,93052.0,93048.0,0.0822]
[1740982929826,0.15512,93052.0,93051.0,0.128961]
[1740982930026,0.15512,93052.0,93051.0,0.14350185]
[1740982930231,0.15512,93052.0,93051.0,0.22240185]
[1740982930409,0.15512,93052.0,93051.0,0.26940185]
[1740982930713,0.15512,93052.0,93051.0,0.56940185]
[1740982930911,0.15512,93075.0,93051.0,0.36154085]
[1740982931136,0.15512,93075.0,93068.0,0.209737]
[1740982931676,0.15512,93075.0,93068.0,0.0798]
[1740982931849,0.0797,93073.0,93052.0,0.3271]
[1740982932006,0.128951,93059.0,93052.0,0.3271]
[1740982932203,0.128947,93062.0,93052.0,0.3271]
[1740982932408,0.128952,93058.0,93052.0,0.3271]
[1740982932612,0.128951,93059.0,93052.0,0.3271]
[1740982932819,0.128944,93063.0,93052.0,0.3271]
[1740982933601,0.171921,93066.0,93052.0,0.3271]
[1740982933602,0.171925,93064.0,93052.0,0.3271]
[1740982933844,0.128951,93059.0,93052.0,0.3271]
[1740982934165,0.17193,93061.0,93052.0,0.3281]
[1740982934455,0.171913,93070.0,93048.0,0.0001707]
[1740982934655,0.12895,93059.0,93048.0,0.0001707]
[1740982934862,0.02182775,93060.0,93048.0,0.0001707]
[1740982935069,0.128952,93058.0,93048.0,0.0001707]
[1740982935224,0.19375975,93060.0,93048.0,0.0001707]
[1740982935429,0.12895,93059.0,93052.0,0.001]
[1740982935655,0.12895,93059.0,93048.0,0.0001707]
[1740982935855,0.17694775,93060.0,93048.0,0.0001707]
[1740982936052,0.17694775,93060.0,93049.0,0.128964]
[1740982936436,0.17694775,93060.0,93048.0,0.0001707]
[1740982936772,0.17694775,93060.0,93048.0,0.1291357]
[1740982936967,0.17694775,93060.0,93048.0,0.0001707]
[1740982937170,0.17694775,93060.0,93048.0,0.0011707]
[1740982937778,0.17694775,93060.0,93049.0,0.128964]
[1740982938084,0.171933,93059.0,93048.0,0.0011707]
[1740982938256,0.128964,93049.0,93048.0,0.0011707]
[1740982938462,0.082,93058.0,93048.0,0.0011707]
[1740982938640,0.128957,93055.0,93048.0,0.0011707]
[1740982938865,0.171937,93057.0,93048.0,0.0001707]
[1740982939196,0.128963,93050.0,93048.0,0.0001707]
[1740982939385,0.082,93058.0,93048.0,0.0001707]
[1740982939386,0.128964,93049.0,93048.0,0.0001707]
[1740982939785,0.128955,93056.0,93048.0,0.0001707]
[1740982939943,0.082,93064.0,93048.0,0.0001707]
[1740982940301,0.17193,93061.0,93048.0,0.0001707]
[1740982940501,0.082,93064.0,93049.0,0.001]
[1740982940502,0.003,93058.0,93049.0,0.001]
[1740982940645,0.128961,93051.0,93049.0,0.001]
[1740982940851,0.171939,93056.0,93049.0,0.001]
[1740982941033,0.128958,93054.0,93048.0,0.0001707]
[1740982941860,0.128958,93053.0,93048.0,0.0001707]
[1740982942292,0.007,93056.0,93048.0,0.0001707]
[1740982942693,0.128964,93050.0,93048.0,0.0001707]
[1740982942900,0.128964,93049.0,93048.0,0.0001707]
[1740982943098,0.207264,93049.0,93048.0,0.0001707]
[1740982944399,0.210264,93049.0,93048.0,0.0001707]
[1740982946687,0.003,93049.0,93048.0,0.0001707]
[1740982947830,0.0744,93051.0,93048.0,0.0001707]
[1740982948024,0.002,93049.0,93048.0,0.0001707]
[1740982948719,0.002,93049.0,93048.0,0.1291357]
[1740982949323,0.15512,93060.0,93048.0,0.1291357]
[1740982949518,0.15512,93060.0,93050.0,0.16098171]
[1740982949740,0.15512,93060.0,93050.0,0.15998171]
[1740982949942,0.15512,93060.0,93052.0,0.128959]
[1740982950142,0.15512,93060.0,93050.0,0.33193171]
[1740982950143,0.15512,93060.0,93056.0,0.128953]
[1740982950460,0.15712,93060.0,93057.0,0.128952]
[1740982950663,0.15712,93060.0,93056.0,0.128954]
[1740982950823,0.15812,93060.0,93057.0,0.128953]
[1740982951026,0.15512,93060.0,93057.0,0.128953]
[1740982951358,0.15512,93060.0,93056.0,0.128954]
[1740982951359,0.15712,93060.0,93056.0,0.128954]
[1740982951562,0.15812,93060.0,93050.0,0.15998171]
[1740982951763,0.15812,93060.0,93059.0,0.12895]
[1740982952686,0.15612,93060.0,93059.0,0.12895]
[1740982952911,0.15812,93060.0,93054.0,0.0772]
[1740982953306,0.15612,93060.0,93054.0,0.0772]
[1740982953470,0.15612,93060.0,93055.0,0.171941]
[1740982953683,0.15712,93060.0,93058.0,0.128951]
[1740982953878,0.15712,93060.0,93054.0,0.0772]
[1740982953879,0.15512,93060.0,93054.0,0.0772]
[1740982954121,0.15512,93060.0,93059.0,0.12895]
[1740982954467,0.15512,93060.0,93055.0,0.17194]
[1740982954725,0.15512,93060.0,93055.0,0.01454085]
[1740982954926,0.15512,93060.0,93058.0,0.128951]
[1740982955096,0.15512,93060.0,93059.0,0.12895]
[1740982955732,0.15512,93060.0,93048.0,0.0781707]
[1740982956130,0.15512,93060.0,93052.0,0.12896]